fUST/lending_fUST_20240529
["ID","MTS","AMOUNT","RATE_DAILY","PERIOD"]
[328128959,1716912435160,-154.92253873,0.00019435,2]
[328128963,1716912445108,-8.42298827,0.00019435,2]
[328128964,1716912445129,-229.15395275,0.00019864,2]
[328128974,1716912568448,176.4249381,0.00019,2]
[328128979,1716912617118,256.51848556,9.999e-05,2]
[328128980,1716912617138,154.92253873,9.999e-05,2]
[328128981,1716912617159,98.42059971,9.999e-05,2]
[328129036,1716912638266,-3331.8053589,0.00018999,2]
[328129037,1716912638321,-412.29918391,0.00018999,2]
[328129038,1716912638331,-7789.26081609,0.00019,2]
[328129070,1716912641484,-294.86,0.00019,2]
[328129073,1716912641720,-19926.46497944,0.00019,2]
[328129074,1716912641733,-3.54527715,0.00019,2]
[328129075,1716912641743,-1268.18628669,0.00019865,2]
[328129076,1716912641752,-22871.6411433,0.0002,2]
[328129077,1716912641763,-154.87609912,0.0002,2]
[328129078,1716912641772,-1908.12189896,0.00020458,2]
[328129079,1716912641781,-203.08279894,0.000205,2]
[328129080,1716912641791,-289.4057073,0.000206,2]
[328129081,1716912641803,-153.0,0.000206,2]
[328129082,1716912641812,-153.0,0.000206,2]
[328129083,1716912641822,-291.8185968,0.000206,2]
[328129084,1716912641831,-153.0,0.000208,2]
[328129085,1716912641840,-291.8185968,0.000208,2]
[328129086,1716912641850,-291.8185968,0.000208,2]
[328129087,1716912641859,-153.0,0.000208,2]
[328129088,1716912641868,-291.8185968,0.000208,2]
[328129089,1716912641878,-153.0,0.000208,2]
[328129090,1716912641887,-153.0,0.000208,2]
[328129091,1716912641897,-291.8185968,0.000208,2]
[328129092,1716912641906,-291.8185968,0.000208,2]
[328129093,1716912641916,-153.0,0.000208,2]
[328129094,1716912641925,-291.8185968,0.000208,2]
[328129095,1716912641935,-153.0,0.000208,2]
[328129096,1716912641944,-427.17988292,0.000208,2]
[328129097,1716912641955,-310.85359116,0.000208,2]
[328129098,1716912641964,-291.8185968,0.000208,2]
[328129099,1716912641974,-291.8185968,0.000208,2]
[328129100,1716912641984,-7686.5682289,0.00020806,2]
[328129118,1716912643434,-3283.40586505,0.00020806,2]
[328129129,1716912718005,52.57940029,9.999e-05,2]
[328129130,1716912718025,250.0,9.999e-05,2]
[328129131,1716912718047,219.39383736,9.999e-05,2]
[328129133,1716912785544,1997.81254295,9.999e-05,2]
[328129135,1716913130874,965.38579394,9.8e-05,2]
[328129158,1716913484892,918.96164878,9.999e-05,2]
[328129161,1716913645162,-151.0,0.00018916,3]
[328129162,1716913645184,-170.636113,0.00019603,2]
[328129163,1716913645206,-177.69744909,0.000199,2]
[328129164,1716913645228,-3744.10454281,0.00019997,2]
[328129165,1716913645249,-517.87902843,0.00019998,2]
[328129166,1716913645270,-227.49355675,0.00019999,2]
[328129167,1716913645293,-189.21805245,0.00019999,2]
[328129168,1716913645315,-429.94627762,0.00019999,2]
[328129169,1716913645338,-500.0,0.00019999,2]
[328129170,1716913645357,-271.57425298,0.00019999,2]
[328129171,1716913645379,-500.0,0.00019999,2]
[328129172,1716913645400,-500.0,0.00019999,2]
[328129173,1716913645421,-500.0,0.00019999,2]
[328129174,1716913645442,-500.0,0.00019999,2]
[328129175,1716913645463,-500.0,0.00019999,2]
[328129176,1716913645487,-500.0,0.00019999,2]
[328129177,1716913645510,-500.0,0.00019999,2]
[328129178,1716913645532,-500.0,0.00019999,2]
[328129179,1716913645553,-500.0,0.00019999,2]
[328129180,1716913645575,-500.0,0.00019999,2]
[328129181,1716913645598,-500.0,0.00019999,2]
[328129182,1716913645619,-500.0,0.00019999,2]
[328129183,1716913645642,-500.0,0.00019999,2]
[328129184,1716913645663,-500.0,0.00019999,2]
[328129185,1716913645684,-500.0,0.00019999,2]
[328129186,1716913645705,-500.0,0.00019999,2]
[328129187,1716913645728,-500.0,0.00019999,2]
[328129188,1716913645751,-500.0,0.00019999,2]
[328129189,1716913645772,-500.0,0.00019999,2]
[328129190,1716913645796,-500.0,0.00019999,2]
[328129191,1716913645816,-500.0,0.00019999,2]
[328129192,1716913645838,-500.0,0.00019999,2]
[328129193,1716913645859,-289.32349335,0.00019999,2]
[328129194,1716913645880,-500.0,0.00019999,2]
[328129195,1716913645900,-500.0,0.00019999,2]
[328129196,1716913645921,-500.0,0.00019999,2]
[328129197,1716913645946,-186.79704801,0.00019999,2]
[328129198,1716913645965,-154.87609912,0.0002,2]
[328129199,1716913645984,-1239.48981166,0.0002,2]
[328129202,1716913747596,189.79554045,0.00015,2]
[328129203,1716913747624,227.20445955,0.00015,2]
[328129205,1716913759146,-3744.10454281,0.00019599,2]
[328129206,1716913759168,-387.16802798,0.000196,2]
[328129207,1716913759189,-387.16802798,0.000196,2]
[328129208,1716913759209,-387.16802798,0.000196,2]
[328129209,1716913759228,-387.16802798,0.000196,2]
[328129210,1716913759248,-387.16802798,0.000196,2]
[328129211,1716913759268,-387.16802798,0.000196,2]
[328129212,1716913759290,-387.16802798,0.000196,2]
[328129213,1716913759309,-387.16802798,0.000196,2]
[328129214,1716913759328,-387.16802798,0.000196,2]
[328129215,1716913759347,-387.16802798,0.000196,2]
[328129216,1716913759367,-387.16802798,0.000196,2]
[328129217,1716913759387,-387.16802798,0.000196,2]
[328129218,1716913759406,-387.16802798,0.000196,2]
[328129219,1716913759426,-387.16802798,0.000196,2]
[328129220,1716913759445,-387.16802798,0.000196,2]
[328129221,1716913759464,-387.16802798,0.000196,2]
[328129222,1716913759483,-387.16802798,0.000196,2]
[328129223,1716913759502,-387.16802798,0.000196,2]
[328129224,1716913759700,-387.16802798,0.000196,2]
[328129225,1716913759720,-387.16802,0.000196,2]
[328129395,1716913838795,-195.34265745,0.000199,2]
[328129396,1716913838805,-3744.10454281,0.00019999,2]
[328129397,1716913838814,-4923.68279974,0.0002,2]
[328129414,1716913843331,-385.62824455,0.0002,2]
[328129415,1716913843349,-21890.83984577,0.0002,2]
[328129416,1716913843359,-154.87609912,0.0002,2]
[328129417,1716913843369,-7219.75247036,0.0002,2]
[328129519,1716913845374,179.16957129,9.999e-05,2]
[328130565,1716913895825,-200.0,0.00028845,120]
[328130566,1716913922522,88.13265486,9.999e-05,2]
[328130567,1716913922545,194.4826775,9.999e-05,2]
[328130568,1716913922566,151.0,9.999e-05,2]
[328130569,1716913922588,194.66435646,9.999e-05,2]
[328130570,1716913922611,92.61026608,9.999e-05,2]
[328130571,1716913936217,237.33731791,9.999e-05,2]
[328130572,1716913936241,453.77732591,9.999e-05,2]
[328130573,1716913964772,154.86062544,9.999e-05,2]
[328130575,1716914063909,18517.12693883,0.00015,2]
[328130576,1716914129728,3000.0,0.00027,30]
[328130580,1716914809149,-184.56172593,0.00015575,2]
[328130582,1716914838223,-1717.68612786,0.00015575,2]
[328130583,1716914838246,-3744.10454281,0.00015576,2]
[328130584,1716914838271,-190.173234,0.00018899,2]
[328130585,1716914838294,-206.65665569,0.000189,2]
[328130586,1716914838319,-151.0,0.00019048,3]
[328130587,1716914838343,-151.0,0.00019048,3]
[328130588,1716914838366,-170.636113,0.00019178,2]
[328130589,1716914838389,-2637.75117063,0.00019896,2]
[328130590,1716914838412,-266.43123383,0.00019898,2]
[328130591,1716914838439,-197.94446861,0.00019898,2]
[328130592,1716914838461,-155.52481032,0.00019995,2]
[328130593,1716914838484,-47171.66755732,0.00019996,2]
[328130594,1716914838512,-155.21965286,0.00019998,2]
[328130595,1716914838537,-517.35254746,0.00019998,2]
[328130596,1716914838560,-1579.76633177,0.00019998,2]
[328130597,1716914838583,-221.34983062,0.00019998,2]
[328130598,1716914838607,-156.6117065,0.00019998,2]
[328130599,1716914838633,-155.46289025,0.00019998,2]
[328130600,1716914838656,-2678.29668145,0.00019998,2]
[328130601,1716914838678,-297.45032814,0.00019998,2]
[328130602,1716914838700,-174.24732678,0.00019998,2]
[328130603,1716914838724,-316.38176035,0.00019998,2]
[328130604,1716914838748,-306.23001275,0.00019998,2]
[328130605,1716914838772,-155.38838414,0.00019998,2]
[328130606,1716914838792,-155.76125289,0.00019998,2]
[328130607,1716914838813,-187.74059143,0.00019998,2]
[328130608,1716914839065,-266.42873188,0.00019998,2]
[328130609,1716914839098,-4566.48524707,0.00019998,2]
[328130610,1716914839118,-194.86360978,0.00019998,2]
[328130611,1716914839138,-1089.49237382,0.00019998,2]
[328130612,1716914839158,-513.4844886,0.00019998,2]
[328130613,1716914839179,-208.30447732,0.00019998,2]
[328130614,1716914839200,-1897.58698072,0.00019998,2]
[328130615,1716914839222,-155.15512011,0.00019998,2]
[328130616,1716914839242,-164.24079481,0.00019998,2]
[328130617,1716914839264,-519.45738067,0.00019998,2]
[328130618,1716914839284,-194.4826775,0.00019998,2]
[328130619,1716914839304,-1496.05848101,0.00019999,2]
[328130620,1716914839324,-1405.61526917,0.00019999,2]
[328130621,1716914839344,-194.66435646,0.00019999,2]
[328130622,1716914839365,-184.26269041,0.00019999,2]
[328130623,1716914839387,-500.0,0.00019999,2]
[328130624,1716914839411,-500.0,0.00019999,2]
[328130625,1716914839437,-500.0,0.00019999,2]
[328130626,1716914839459,-500.0,0.00019999,2]
[328130627,1716914839480,-500.0,0.00019999,2]
[328130628,1716914839505,-356.0391144,0.00019999,2]
[328130629,1716914839527,-500.0,0.00019999,2]
[328130630,1716914839548,-500.0,0.00019999,2]
[328130631,1716914839568,-15651.88867294,0.0002,2]
[328130632,1716914839588,-38271.9659,0.0002,2]
[328130633,1716914839608,-154.86062544,0.0002,2]
[328130634,1716914839627,-168.01652954,0.0002,2]
[328130635,1716914839646,-151.0,0.0002,2]
[328130636,1716914839666,-151.0,0.0002,2]
[328130637,1716914839686,-151.0,0.0002,2]
[328130638,1716914839706,-151.0,0.0002,2]
[328130639,1716914839727,-151.0,0.0002,2]
[328130640,1716914839746,-151.0,0.0002,2]
[328130641,1716914839769,-151.0,0.0002,2]
[328130642,1716914839790,-151.0,0.0002,2]
[328130643,1716914839810,-151.0,0.0002,2]
[328130644,1716914839831,-199.309073,0.0002,2]
[328130645,1716914839852,-199.309073,0.0002,2]
[328130646,1716914839873,-199.309073,0.0002,2]
[328130647,1716914839896,-199.309073,0.0002,2]
[328130648,1716914839918,-151.0,0.0002,2]
[328130649,1716914839941,-151.0,0.0002,2]
[328130650,1716914839963,-151.0,0.0002,2]
[328130651,1716914839985,-151.0,0.0002,2]
[328130652,1716914840006,-151.0,0.0002,2]
[328130653,1716914840032,-156.424417,0.0002,2]
[328130654,1716914840053,-249.567945,0.0002,2]
[328130655,1716914840076,-151.0,0.0002,2]
[328130656,1716914840097,-151.0,0.0002,2]
[328130657,1716914840119,-151.0,0.0002,2]
[328130658,1716914840141,-151.0,0.0002,2]
[328130659,1716914840163,-151.0,0.0002,2]
[328130660,1716914840185,-241.681376,0.0002,2]
[328130661,1716914840208,-151.0,0.0002,2]
[328130662,1716914840230,-151.0,0.0002,2]
[328130663,1716914840252,-305.10419,0.0002,2]
[328130664,1716914840281,-305.10419,0.0002,2]
[328130665,1716914840302,-305.10419,0.0002,2]
[328130666,1716914840324,-305.10419,0.0002,2]
[328130667,1716914840344,-151.0,0.0002,2]
[328130668,1716914840364,-151.0,0.0002,2]
[328130669,1716914840384,-151.0,0.0002,2]
[328130670,1716914840405,-266.43123382,0.00020378,2]
[328130671,1716914840429,-266.43123382,0.00020858,2]
[328130672,1716914840450,-2177.98605443,0.000209,2]
[328130673,1716914840472,-151.0,0.000209,2]
[328130674,1716914840492,-151.0,0.000209,2]
[328130675,1716914840525,-151.0,0.000209,2]
[328130676,1716914840546,-305.10419,0.000209,2]
[328130677,1716914840567,-305.10419,0.000209,2]
[328130678,1716914840589,-151.0,0.00020904,2]
[328130679,1716914840610,-153.0,0.00020904,2]
[328130680,1716914840631,-153.0,0.00020904,2]
[328130681,1716914840651,-153.0,0.00020904,2]
[328130682,1716914840674,-153.0,0.00020904,2]
[328130683,1716914840695,-153.0,0.00020904,2]
[328130684,1716914840716,-154.92253873,0.0002091,2]
[328130685,1716914840736,-237.57694102,0.0002091,2]
[328130686,1716914840757,-2695.30271715,0.0002091,2]
[328130687,1716914840782,-151.0,0.0002091,2]
[328130688,1716914840802,-151.0,0.0002091,2]
[328130689,1716914840822,-151.0,0.0002091,2]
[328130690,1716914840844,-151.0,0.0002091,2]
[328130691,1716914840865,-199.309073,0.0002091,2]
[328130692,1716914840886,-199.309073,0.0002091,2]
[328130693,1716914840908,-151.0,0.0002091,2]
[328130694,1716914840930,-151.0,0.0002091,2]
[328130695,1716914840952,-303.5,0.00020911,2]
[328130696,1716914840977,-5284.4560249,0.00020911,2]
[328130697,1716914840999,-151.0,0.00020911,2]
[328130698,1716914841022,-151.0,0.00020911,2]
[328130699,1716914841042,-151.0,0.00020911,2]
[328130700,1716914841063,-151.0,0.00020911,2]
[328130701,1716914841085,-199.309073,0.00020911,2]
[328130702,1716914841107,-199.309073,0.00020911,2]
[328130703,1716914841129,-151.0,0.00020911,2]
[328130704,1716914841151,-151.0,0.00020911,2]
[328130705,1716914841171,-218.232094,0.00020911,2]
[328130706,1716914841192,-151.0,0.00020911,2]
[328130707,1716914841212,-151.0,0.00020911,2]
[328130708,1716914841236,-213.12966544,0.00020911,2]
[328130709,1716914841593,-91.97452456,0.00020911,2]
[328130710,1716914841615,-134.89469037,0.00020911,2]
[328130711,1716914851093,-156.87995729,0.00020911,2]
[328130747,1716914947121,-150.0,0.000189,2]
[328130873,1716915040088,-190.173234,0.00020811,2]
[328130874,1716915040098,-177.62082256,0.00020812,2]
[328130875,1716915040108,-2063.93286761,0.00020907,2]
[328130876,1716915040120,-20343.7,0.00020907,2]
[328130877,1716915040133,-464.00827569,0.00020907,2]
[328130878,1716915040142,-3744.10454281,0.00020908,2]
[328130879,1716915040151,-156.94058295,0.0002091,2]
[328130880,1716915040161,-13.32954234,0.00020911,2]
[328130881,1716915040171,-151.0,0.00020911,2]
[328130882,1716915040182,-235.50436396,0.00020912,2]
[328130883,1716915040192,-522.61290648,0.00020912,2]
[328130884,1716915040202,-2366.49978577,0.00020912,2]
[328130885,1716915040219,-278.11975488,0.00020912,2]
[328130886,1716915040229,-1184.74922804,0.00020912,2]
[328130887,1716915040238,-231.37501378,0.00020912,2]
[328130888,1716915040248,-944.90375097,0.00020912,2]
[328130889,1716915040257,-837.66004616,0.00020912,2]
[328130890,1716915040269,-155.81961941,0.00020912,2]
[328130891,1716915040278,-155.18176252,0.00020912,2]
[328130892,1716915040288,-155.16493286,0.00020912,2]
[328130893,1716915040297,-261.10136921,0.00020912,2]
[328130894,1716915040307,-285.03925166,0.00020912,2]
[328130895,1716915040317,-155.15857417,0.00020912,2]
[328130896,1716915040326,-9569.20149698,0.00020912,2]
[328130897,1716915040336,-9786.81221286,0.00020912,2]
[328130898,1716915040346,-156.57314143,0.00020912,2]
[328130899,1716915040355,-3065.25985459,0.00020912,2]
[328130900,1716915040365,-151.0,0.00020912,2]
[328130901,1716915040375,-167.161575,0.00020912,2]
[328130902,1716915040385,-151.0,0.00020912,2]
[328130903,1716915040395,-151.0,0.00020912,2]
[328130904,1716915040404,-151.0,0.00020912,2]
[328130905,1716915040415,-165.463404,0.00020912,2]
[328130906,1716915040426,-151.0,0.00020912,2]
[328130907,1716915040436,-151.0,0.00020912,2]
[328130908,1716915040445,-151.0,0.00020912,2]
[328130909,1716915040455,-205.884843,0.00020912,2]
[328130910,1716915040464,-199.309073,0.00020912,2]
[328130911,1716915040473,-199.309073,0.00020912,2]
[328130912,1716915040488,-199.309073,0.00020912,2]
[328130913,1716915040498,-199.309073,0.00020912,2]
[328130914,1716915040507,-199.309073,0.00020912,2]
[328130915,1716915040517,-199.309073,0.00020912,2]
[328130916,1716915040527,-199.309073,0.00020912,2]
[328130917,1716915040536,-199.309073,0.00020912,2]
[328130918,1716915040546,-151.0,0.00020912,2]
[328130919,1716915040557,-151.0,0.00020912,2]
[328130920,1716915040567,-151.0,0.00020912,2]
[328130921,1716915040577,-151.0,0.00020912,2]
[328130922,1716915040586,-151.0,0.00020912,2]
[328130923,1716915040596,-214.994432,0.00020912,2]
[328130924,1716915040605,-151.0,0.00020912,2]
[328130925,1716915040615,-151.0,0.00020912,2]
[328130926,1716915040624,-151.0,0.00020912,2]
[328130927,1716915040635,-151.0,0.00020912,2]
[328130928,1716915040644,-151.426068,0.00020912,2]
[328130929,1716915040655,-305.10419,0.00020912,2]
[328130930,1716915040665,-305.10419,0.00020912,2]
[328130931,1716915040676,-305.10419,0.00020912,2]
[328130932,1716915040686,-305.10419,0.00020912,2]
[328130933,1716915040695,-305.10419,0.00020912,2]
[328130934,1716915040704,-305.10419,0.00020912,2]
[328130935,1716915040713,-305.10419,0.00020912,2]
[328130936,1716915040723,-305.10419,0.00020912,2]
[328130937,1716915040733,-151.0,0.00020912,2]
[328130938,1716915040742,-151.0,0.00020912,2]
[328130939,1716915040752,-151.0,0.00020912,2]
[328130940,1716915040760,-151.0,0.00020912,2]
[328130941,1716915040770,-500.0,0.00020913,2]
[328130942,1716915040779,-500.0,0.00020913,2]
[328130943,1716915040789,-156.81173432,0.00020913,2]
[328130944,1716915040800,-153.0,0.00020932,2]
[328130945,1716915040810,-280.0,0.00021,2]
[328130946,1716915040819,-1144.17653548,0.00021,2]
[328130947,1716915040828,-646.0,0.00021085,2]
[328130948,1716915040838,-238.956,0.00021085,2]
[328130949,1716915040847,-177.62082254,0.00021315,2]
[328130950,1716915040856,-151.0,0.00021337,2]
[328130951,1716915040866,-305.10419,0.00021337,2]
[328130952,1716915040876,-305.10419,0.00021337,2]
[328130953,1716915040885,-151.0,0.00021342,2]
[328130954,1716915040895,-199.309073,0.00021342,2]
[328130955,1716915040904,-199.309073,0.00021342,2]
[328130956,1716915040914,-151.0,0.00021342,2]
[328130957,1716915040923,-151.0,0.00021342,2]
[328130958,1716915040933,-153.0,0.00021342,2]
[328130959,1716915040942,-153.0,0.00021342,2]
[328130960,1716915040951,-153.0,0.00021342,2]
[328130961,1716915040961,-153.0,0.00021342,2]
[328130962,1716915040970,-153.0,0.00021342,2]
[328130963,1716915040979,-153.0,0.00021342,2]
[328130964,1716915040989,-153.0,0.00021342,2]
[328130965,1716915040998,-153.0,0.00021342,2]
[328130966,1716915041007,-153.0,0.00021342,2]
[328130967,1716915041016,-153.0,0.00021342,2]
[328130968,1716915041025,-153.0,0.000214,2]
[328130969,1716915041034,-153.0,0.000214,2]
[328130970,1716915041044,-933.19801789,0.00021414,2]
[328130971,1716915041053,-153.0,0.000215,2]
[328130972,1716915041063,-153.0,0.000215,2]
[328130973,1716915041072,-153.0,0.000215,2]
[328130974,1716915041082,-829.866224,0.00021644,2]
[328130975,1716915041093,-829.866224,0.00021644,2]
[328130976,1716915041103,-829.866224,0.00021644,2]
[328130977,1716915041112,-829.866224,0.00021644,2]
[328130978,1716915041121,-829.866224,0.00021644,2]
[328130979,1716915041131,-829.866224,0.00021644,2]
[328130980,1716915041140,-829.866224,0.00021644,2]
[328130981,1716915041150,-829.866224,0.00021644,2]
[328130982,1716915041159,-829.866224,0.00021644,2]
[328130983,1716915041168,-829.866224,0.00021644,2]
[328130984,1716915041180,-829.866224,0.00021644,2]
[328130985,1716915041189,-829.866224,0.00021644,2]
[328130986,1716915041199,-829.866224,0.00021644,2]
[328130987,1716915041208,-829.866224,0.00021644,2]
[328130988,1716915041217,-829.866224,0.00021644,2]
[328130989,1716915041226,-829.866224,0.00021644,2]
[328130990,1716915041236,-829.866224,0.00021644,2]
[328130991,1716915041245,-829.866224,0.00021644,2]
[328130992,1716915041255,-151.0,0.00021644,2]
[328130994,1716915041264,-151.0,0.00021644,2]
[328130995,1716915041273,-199.309073,0.00021644,2]
[328130996,1716915041283,-199.309081,0.00021644,2]
[328130997,1716915041292,-151.0,0.00021644,2]
[328130998,1716915041302,-829.866224,0.00021644,2]
[328130999,1716915041311,-829.866231,0.00021644,2]
[328131000,1716915041320,-161.42959,0.00021644,2]
[328131001,1716915041329,-305.10419,0.00021644,2]
[328131002,1716915041338,-305.104198,0.00021644,2]
[328131003,1716915041348,-279.547293,0.00021644,2]
[328131004,1716915041357,-2000.0,0.00021716,2]
[328131005,1716915041367,-248.05806,0.00021753,2]
[328131006,1716915041376,-2013.0,0.000218,3]
[328131007,1716915041386,-922.90437824,0.00021815,2]
[328131008,1716915041395,-1052.86493112,0.00021816,3]
[328131018,1716915042297,-1088.1312,0.00020906,2]
[328131124,1716916033163,-151.0,0.00019151,3]
[328131125,1716916033183,-194.52909565,0.00019544,2]
[328131126,1716916033204,-35.45096833,0.00019998,2]
[328131127,1716916033232,-413.30208355,0.00019998,2]
[328131128,1716916039167,-193.20893029,0.00019998,2]
[328131129,1716916041103,-151.0,0.00019998,2]
[328131130,1716916044102,-13406.18680821,0.00019998,2]
[328131131,1716916052107,-206.85196473,0.00019998,2]
[328131132,1716916163098,-150.0,0.000189,2]
[328131172,1716916231995,-3744.10454281,0.00019993,2]
[328131174,1716916232005,-3283.00506586,0.00019994,2]
[328131181,1716916237034,155.45307699,0.000189,2]
[328131182,1716916237381,90.84718263,0.000189,2]
[328131190,1716916238517,-377.73408523,0.000189,2]
[328131191,1716916238529,-625.44716545,0.000189,2]
[328131192,1716916238542,-15068.51033123,0.000189,2]
[328131193,1716916238552,-15989.81727584,0.00019994,2]
[328131194,1716916238561,-299.7786707,0.00019998,2]
[328131195,1716916238571,-279.1103904,0.0002,2]
[328131196,1716916238581,-212.20505906,0.00020812,2]
[328131197,1716916238590,-2457.01070146,0.00020912,2]
[328131209,1716916241911,-154.86062544,0.000189,2]
[328131210,1716916241923,-3635.29267682,0.000189,2]
[328131211,1716916241932,-16205.88914589,0.00020912,2]
[328131212,1716916241942,-3891.02210502,0.00020912,2]
[328131213,1716916241951,-1022.30616127,0.00020912,2]
[328131214,1716916241961,-509.861624,0.00020912,2]
[328131215,1716916241972,-193.20893029,0.00020913,2]
[328131216,1716916241981,-495.77645756,0.00020913,2]
[328131217,1716916241990,-226.05752525,0.00020913,2]
[328131218,1716916242000,-226.49152138,0.00020913,2]
[328131219,1716916242009,-238.99237733,0.00020913,2]
[328131220,1716916242023,-5372.22161771,0.00020913,2]
[328131221,1716916242038,-4804.59286434,0.00020913,2]
[328131222,1716916242047,-153.0,0.00021,2]
[328131223,1716916242056,-212.20505904,0.00021063,2]
[328131224,1716916242065,-212.20505904,0.00021315,2]
[328131225,1716916242075,-973.66713896,0.00021361,2]
[328131226,1716916242084,-212.20505904,0.00021566,2]
[328131227,1716916242093,-282.0,0.000218,2]
[328131228,1716916242103,-206.85196473,0.00021814,7]
[328131229,1716916242112,-175.72514253,0.00021815,2]
[328131230,1716916242122,-1464.24815465,0.00021817,3]
[328131231,1716916242136,-5872.03337186,0.00021817,3]
[328131232,1716916242150,-6385.97446151,0.00021817,3]
[328131273,1716916260955,209.1310101,0.00015684,2]
[328131274,1716916260974,156.87701235,0.00015684,2]
[328131275,1716916260993,151.0,0.00015684,2]
[328131276,1716916261013,152.73222523,0.00015684,2]
[328131277,1716916261034,219.39383736,0.00015684,2]
[328131278,1716916261053,154.92253873,0.00015684,2]
[328131279,1716916272942,521.97323765,9.999e-05,2]
[328131283,1716916341393,299.7786707,9.999e-05,2]
[328131284,1716916346032,3635.29267682,9.999e-05,2]
[328131285,1716916353010,154.87609912,0.0001,2]
[328131286,1716916359385,299.26311863,9.999e-05,2]
[328131287,1716916360041,816.28481169,9.999e-05,2]
[328131291,1716916434943,154.86062544,0.0001,2]
[328131292,1716916450951,154.93811453,0.0001,2]
[328131296,1716916766053,316.80466515,9.999e-05,2]
[328131297,1716916869414,8067.69705166,9.999e-05,2]
[328131300,1716916974159,3381.93422233,9.999e-05,2]
[328131301,1716916988108,3634.41600598,9.999e-05,2]
[328131302,1716916994098,986.2720064,9.999e-05,2]
[328131303,1716917010111,3634.41600598,9.999e-05,2]
[328131304,1716917029481,7913.87994236,9.999e-05,2]
[328131305,1716917030305,3638.39436627,9.999e-05,2]
[328131308,1716917129635,190.30351455,9.999e-05,2]
[328131309,1716917137086,309.6903097,9.999e-05,2]
[328131310,1716917138601,155.58084082,9.999e-05,2]
[328131311,1716917144855,3631.20230829,9.999e-05,2]
[328131312,1716917221560,157.40785376,9.999e-05,2]
[328131313,1716917229125,-93.34591371,0.00015684,2]
[328131314,1716917229150,-61.57662502,0.00017545,2]
[328131315,1716917233185,-250.0,0.00017545,2]
[328131316,1716917235113,-256.51848556,0.00017545,2]
[328131317,1716917239088,-12733.23369521,0.00017544,2]
[328131318,1716917253103,-151.0,0.00017544,2]
[328131321,1716917351288,-592.7051673,0.00017075,2]
[328131322,1716917351311,-3744.10454281,0.00017543,2]
[328131323,1716917351335,-6388.58864649,0.00017544,2]
[328131324,1716917351358,-2069.65606005,0.00017545,2]
[328131325,1716917351384,-2982.6164575,0.00017546,2]
[328131326,1716917367126,-560.7179945,0.00018282,2]
[328131327,1716917367153,-24900.0,0.00018502,2]
[328131328,1716917367178,-216.8722771,0.000188,2]
[328131329,1716917367201,-201.76114792,0.000189,2]
[328131330,1716917367224,-150.0,0.000189,2]
[328131331,1716917367249,-157.40785376,0.00019153,2]
[328131332,1716917367273,-151.0,0.00019154,3]
[328131333,1716917367293,-151.0,0.00019154,2]
[328131334,1716917367313,-163.345527,0.00019178,2]
[328131335,1716917367334,-170.636113,0.00019178,2]
[328131336,1716917367356,-151.0,0.00019505,2]
[328131337,1716917367987,119.52857208,0.000185,2]
[328131390,1716917438346,-151.0,0.00019175,3]
[328131392,1716917438356,-157.40785376,0.00019853,2]
[328131394,1716917438366,-605.27757763,0.00019854,2]
[328131396,1716917438376,-1572.60293004,0.00019999,2]
[328131425,1716917441782,-2171.50161277,0.00019999,2]
[328131426,1716917441792,-294.24346888,0.0002,10]
[328131427,1716917441806,-513.72534693,0.0002,10]
[328131428,1716917441816,-1500.0,0.0002,2]
[328131429,1716917441825,-527.89257557,0.00020811,4]
[328131430,1716917441835,-169.45911643,0.00020812,2]